fUST/lending_fUST_20250828
["ID","MTS","AMOUNT","RATE_DAILY","PERIOD"]
[381876219,1756384255182,-480.0,0.00019726,2]
[381876221,1756384255191,-480.0,0.00019726,2]
[381876223,1756384255206,-480.0,0.00019726,2]
[381876225,1756384255215,-480.0,0.00019726,2]
[381876227,1756384255225,-480.0,0.00019726,2]
[381876229,1756384255234,-480.0,0.00019726,2]
[381876231,1756384255245,-480.0,0.00019726,2]
[381876233,1756384255253,-480.0,0.00019726,2]
[381876235,1756384255263,-480.0,0.00019726,2]
[381876237,1756384255272,-480.0,0.00019726,2]
[381876239,1756384255283,-480.0,0.00019726,2]
[381876241,1756384255292,-480.0,0.00019726,2]
[381876243,1756384255302,-480.0,0.00019726,2]
[381876245,1756384255311,-480.0,0.00019726,2]
[381876247,1756384255320,-480.0,0.00019726,2]
[381876249,1756384255329,-480.0,0.00019726,2]
[381876251,1756384255339,-480.0,0.00019726,2]
[381876253,1756384255348,-480.0,0.00019726,2]
[381876255,1756384255358,-480.0,0.00019726,2]
[381876257,1756384255368,-480.0,0.00019726,2]
[381876259,1756384255377,-480.0,0.00019726,2]
[381876261,1756384255386,-480.0,0.00019726,2]
[381876263,1756384255396,-480.0,0.00019726,2]
[381876265,1756384255406,-480.0,0.00019726,2]
[381876267,1756384255415,-480.0,0.00019726,2]
[381876269,1756384255424,-480.0,0.00019726,2]
[381876271,1756384255433,-468.88772611,0.00019726,2]
[381876274,1756384255443,-480.0,0.00019726,2]
[381876276,1756384255454,-480.0,0.00019726,2]
[381876278,1756384255473,-480.0,0.00019726,2]
[381876280,1756384255482,-480.0,0.00019726,2]
[381876281,1756384255492,-480.0,0.00019726,2]
[381876283,1756384255501,-414.19910952,0.00019726,2]
[381876285,1756384255510,-480.0,0.00019726,2]
[381876287,1756384255520,-480.0,0.00019726,2]
[381876289,1756384255529,-480.0,0.00019726,2]
[381876291,1756384255538,-480.0,0.00019726,2]
[381876293,1756384255547,-530.76,0.00019726,2]
[381876295,1756384255556,-480.0,0.00019726,2]
[381876297,1756384255566,-418.37553712,0.00019726,2]
[381876299,1756384255575,-480.0,0.00019726,2]
[381876301,1756384255589,-480.0,0.00019726,2]
[381876303,1756384255598,-480.0,0.00019726,2]
[381876305,1756384255609,-1556.26,0.00019726,2]
[381876307,1756384255620,-480.0,0.00019726,2]
[381876309,1756384255629,-481.34,0.00019726,2]
[381876311,1756384255638,-480.0,0.00019726,2]
[381876313,1756384255648,-480.0,0.00019726,2]
[381876315,1756384255657,-480.0,0.00019726,2]
[381876317,1756384255666,-480.0,0.00019726,2]
[381876319,1756384255675,-480.0,0.00019726,2]
[381876321,1756384255684,-480.0,0.00019726,2]
[381876323,1756384255693,-480.0,0.00019726,2]
[381876325,1756384255702,-822.52,0.00019726,2]
[381876327,1756384255711,-480.0,0.00019726,2]
[381876329,1756384255720,-480.0,0.00019726,2]
[381876331,1756384255729,-480.0,0.00019726,2]
[381876333,1756384255740,-480.0,0.00019726,2]
[381876335,1756384255750,-828.34,0.00019726,2]
[381876337,1756384255760,-480.0,0.00019726,2]
[381876339,1756384255769,-480.0,0.00019726,2]
[381876341,1756384255779,-480.0,0.00019726,2]
[381876343,1756384255788,-480.0,0.00019726,2]
[381876345,1756384255798,-480.0,0.00019726,2]
[381876347,1756384255808,-480.0,0.00019726,2]
[381876349,1756384255817,-480.0,0.00019726,2]
[381876351,1756384255826,-480.0,0.00019726,2]
[381876353,1756384255839,-480.0,0.00019726,2]
[381876355,1756384255848,-702.29,0.00019726,2]
[381876356,1756384255857,-480.0,0.00019726,2]
[381876358,1756384255867,-480.0,0.00019726,2]
[381876360,1756384255879,-1107.21,0.00019726,2]
[381876362,1756384255889,-480.0,0.00019726,2]
[381876364,1756384255898,-480.0,0.00019726,2]
[381876366,1756384255907,-480.0,0.00019726,2]
[381876368,1756384255917,-480.0,0.00019726,2]
[381876370,1756384255926,-642.18,0.00019726,2]
[381876372,1756384255936,-480.0,0.00019726,2]
[381876374,1756384255945,-557.18730523,0.00019726,2]
[381876376,1756384255954,-480.0,0.00019726,2]
[381876378,1756384255964,-480.0,0.00019726,2]
[381876380,1756384255973,-480.0,0.00019726,2]
[381876382,1756384255982,-480.0,0.00019726,2]
[381876384,1756384255992,-480.0,0.00019726,2]
[381876386,1756384256001,-480.0,0.00019726,2]
[381876388,1756384256011,-480.0,0.00019726,2]
[381876390,1756384256020,-495.12,0.00019726,2]
[381876392,1756384256029,-480.0,0.00019726,2]
[381876394,1756384256038,-480.0,0.00019726,2]
[381876396,1756384256048,-480.0,0.00019726,2]
[381876398,1756384256057,-531.78,0.00019726,2]
[381876400,1756384256066,-480.0,0.00019726,2]
[381876401,1756384256076,-504.23,0.00019726,2]
[381876403,1756384256100,-480.0,0.00019726,2]
[381876405,1756384256109,-480.0,0.00019726,2]
[381876407,1756384256118,-480.0,0.00019726,2]
[381876409,1756384256127,-480.0,0.00019726,2]
[381876411,1756384256136,-480.0,0.00019726,2]
[381876413,1756384256146,-480.0,0.00019726,2]
[381876415,1756384256155,-480.0,0.00019726,2]
[381876417,1756384256164,-480.0,0.00019726,2]
[381876419,1756384256174,-488.08,0.00019726,2]
[381876421,1756384256183,-480.0,0.00019726,2]
[381876423,1756384256192,-480.0,0.00019726,2]
[381876425,1756384256206,-1093.88,0.00019726,2]
[381876427,1756384256215,-480.0,0.00019726,2]
[381876429,1756384256226,-641.25,0.00019726,2]
[381876431,1756384256235,-516.19,0.00019726,2]
[381876433,1756384256247,-480.0,0.00019726,2]
[381876435,1756384256256,-480.0,0.00019726,2]
[381876437,1756384256265,-648.51,0.00019726,2]
[381876439,1756384256275,-593.99,0.00019726,2]
[381876441,1756384256284,-480.0,0.00019726,2]
[381876442,1756384256293,-480.0,0.00019726,2]
[381876444,1756384256303,-480.0,0.00019726,2]
[381876446,1756384256312,-480.0,0.00019726,2]
[381876448,1756384256321,-480.0,0.00019726,2]
[381876450,1756384256331,-807.96,0.00019726,2]
[381876452,1756384256339,-696.91,0.00019726,2]
[381876454,1756384256349,-480.0,0.00019726,2]
[381876471,1756384256358,-480.0,0.00019726,2]
[381876473,1756384256519,-480.0,0.00019726,2]
[381876475,1756384256527,-480.0,0.00019726,2]
[381876477,1756384256537,-918.93,0.00019726,2]
[381876479,1756384256547,-482.12182581,0.00019726,2]
[381876481,1756384256556,-480.0,0.00019726,2]
[381876483,1756384256566,-802.9,0.00019726,2]
[381876485,1756384256576,-480.0,0.00019726,2]
[381876486,1756384256585,-480.0,0.00019726,2]
[381876488,1756384256594,-480.0,0.00019726,2]
[381876490,1756384256603,-787.3,0.00019726,2]
[381876492,1756384256612,-526.6,0.00019726,2]
[381876494,1756384256622,-480.0,0.00019726,2]
[381876496,1756384256631,-329.44196283,0.00019726,2]
[381876498,1756384256640,-1409.26,0.00019726,2]
[381876500,1756384256650,-480.0,0.00019726,2]
[381876502,1756384256660,-480.0,0.00019726,2]
[381876504,1756384256669,-480.0,0.00019726,2]
[381876506,1756384256678,-480.0,0.00019726,2]
[381876508,1756384256687,-480.0,0.00019726,2]
[381876510,1756384256696,-480.0,0.00019726,2]
[381876512,1756384256706,-480.0,0.00019726,2]
[381876514,1756384256715,-552.35445326,0.00019726,2]
[381876516,1756384256724,-480.0,0.00019726,2]
[381876518,1756384256733,-480.0,0.00019726,2]
[381876520,1756384256744,-480.0,0.00019726,2]
[381876522,1756384256753,-480.0,0.00019726,2]
[381876524,1756384256763,-480.0,0.00019726,2]
[381876526,1756384256772,-578.3,0.00019726,2]
[381876527,1756384256781,-932.32,0.00019726,2]
[381876529,1756384256790,-480.0,0.00019726,2]
[381876531,1756384256799,-480.0,0.00019726,2]
[381876533,1756384256808,-480.0,0.00019726,2]
[381876535,1756384256817,-480.0,0.00019726,2]
[381876537,1756384256828,-480.0,0.00019726,2]
[381876539,1756384256837,-480.0,0.00019726,2]
[381876541,1756384256846,-516.3853136,0.00019726,2]
[381876543,1756384256855,-480.0,0.00019726,2]
[381876545,1756384256865,-509.52754952,0.00019726,2]
[381876547,1756384256874,-480.0,0.00019726,2]
[381876549,1756384256883,-545.09,0.00019726,2]
[381876551,1756384256892,-488.05,0.00019726,2]
[381876553,1756384256902,-480.0,0.00019726,2]
[381876555,1756384256911,-480.0,0.00019726,2]
[381876557,1756384256920,-480.0,0.00019726,2]
[381876559,1756384256929,-480.0,0.00019726,2]
[381876561,1756384256939,-609.22,0.00019726,2]
[381876563,1756384256948,-480.0,0.00019726,2]
[381876565,1756384256957,-481.85010054,0.00019726,2]
[381876567,1756384256966,-480.0,0.00019726,2]
[381876569,1756384256975,-480.0,0.00019726,2]
[381876571,1756384256985,-480.0,0.00019726,2]
[381876573,1756384256997,-480.0,0.00019726,2]
[381876575,1756384257007,-480.0,0.00019726,2]
[381876577,1756384257016,-480.0,0.00019726,2]
[381876578,1756384257026,-480.0,0.00019726,2]
[381876580,1756384257035,-504.18,0.00019726,2]
[381876582,1756384257044,-539.51,0.00019726,2]
[381876584,1756384257053,-640.54,0.00019726,2]
[381876586,1756384257063,-480.0,0.00019726,2]
[381876588,1756384257072,-480.0,0.00019726,2]
[381876590,1756384257081,-480.0,0.00019726,2]
[381876592,1756384257090,-578.57,0.00019726,2]
[381876594,1756384257099,-480.0,0.00019726,2]
[381876596,1756384257108,-480.0,0.00019726,2]
[381876597,1756384257119,-480.0,0.00019726,2]
[381876599,1756384257128,-480.0,0.00019726,2]
[381876601,1756384257137,-480.0,0.00019726,2]
[381876603,1756384257147,-776.37,0.00019726,2]
[381876605,1756384257156,-480.0,0.00019726,2]
[381876607,1756384257166,-480.0,0.00019726,2]
[381876609,1756384257176,-480.0,0.00019726,2]
[381876611,1756384257186,-480.0,0.00019726,2]
[381876613,1756384257197,-919.41,0.00019726,2]
[381876615,1756384257209,-480.0,0.00019726,2]
[381876617,1756384257218,-480.0,0.00019726,2]
[381876619,1756384257228,-480.0,0.00019726,2]
[381876621,1756384257238,-480.0,0.00019726,2]
[381876623,1756384257250,-480.0,0.00019726,2]
[381876625,1756384257259,-848.71,0.00019726,2]
[381876627,1756384257269,-500.0,0.00019726,2]
[381876629,1756384257279,-519.15,0.00019726,2]
[381876631,1756384257289,-668.9,0.00019726,2]
[381876633,1756384257298,-678.84,0.00019726,2]
[381876635,1756384257307,-340.87845205,0.00019726,2]
[381876637,1756384257316,-480.0,0.00019726,2]
[381876639,1756384257325,-482.88355568,0.00019726,2]
[381876641,1756384257334,-1356.22,0.00019726,2]
[381876643,1756384257343,-480.0,0.00019726,2]
[381876645,1756384257353,-1001.69,0.00019726,2]
[381876647,1756384257363,-1735.58,0.00019726,2]
[381876649,1756384257372,-480.0,0.00019726,2]
[381876650,1756384257381,-1198.11,0.00019726,2]
[381876652,1756384257390,-480.0,0.00019726,2]
[381876654,1756384257400,-348.22120734,0.00019726,2]
[381876656,1756384257409,-480.0,0.00019726,2]
[381876658,1756384257418,-480.0,0.00019726,2]
[381876660,1756384257428,-771.67,0.00019726,2]
[381876662,1756384257438,-2194.34,0.00019726,2]
[381876664,1756384257447,-1111.13,0.00019726,2]
[381876666,1756384257456,-480.0,0.00019726,2]
[381876668,1756384257467,-480.0,0.00019726,2]
[381876670,1756384257476,-480.0,0.00019726,2]
[381876671,1756384257486,-480.0,0.00019726,2]
[381876673,1756384257498,-664.64,0.00019726,2]
[381876675,1756384257508,-480.0,0.00019726,2]
[381876677,1756384257518,-480.0,0.00019726,2]
[381876679,1756384257528,-1289.8,0.00019726,2]
[381876681,1756384257538,-523.97,0.00019726,2]
[381876683,1756384257548,-480.0,0.00019726,2]
[381876685,1756384257558,-480.0,0.00019726,2]
[381876687,1756384257568,-480.0,0.00019726,2]
[381876689,1756384257579,-1977.57,0.00019726,2]
[381876691,1756384257588,-480.0,0.00019726,2]
[381876693,1756384257598,-1519.44,0.00019726,2]
[381876695,1756384257608,-480.0,0.00019726,2]
[381876697,1756384257618,-609.77650202,0.00019726,2]
[381876700,1756384257628,-1910.05,0.00019726,2]
[381876702,1756384257638,-480.0,0.00019726,2]
[381876704,1756384257648,-480.0,0.00019726,2]
[381876705,1756384257657,-480.0,0.00019726,2]
[381876707,1756384257667,-562.55565611,0.00019726,2]
[381876709,1756384257677,-480.0,0.00019726,2]
[381876711,1756384257686,-480.0,0.00019726,2]
[381876713,1756384257695,-487.58,0.00019726,2]
[381876715,1756384257705,-480.0,0.00019726,2]
[381876717,1756384257715,-590.49,0.00019726,2]
[381876719,1756384257724,-480.0,0.00019726,2]
[381876721,1756384257734,-3678.97,0.00019726,2]
[381876723,1756384257746,-480.0,0.00019726,2]
[381876725,1756384257756,-480.0,0.00019726,2]
[381876727,1756384257765,-556.51,0.00019726,2]
[381876729,1756384257775,-480.0,0.00019726,2]
[381876731,1756384257784,-955.97,0.00019726,2]
[381876733,1756384257793,-480.0,0.00019726,2]
[381876735,1756384257803,-480.0,0.00019726,2]
[381876737,1756384257812,-484.26,0.00019726,2]
[381876739,1756384257822,-2547.54,0.00019726,2]
[381876741,1756384257831,-480.0,0.00019726,2]
[381876742,1756384257841,-643.55,0.00019726,2]
[381876743,1756384257850,-480.0,0.00019726,2]
[381876744,1756384257860,-480.0,0.00019726,2]
[381876745,1756384257870,-480.0,0.00019726,2]
[381876746,1756384257879,-567.35,0.00019726,2]
[381876747,1756384257888,-480.0,0.00019726,2]
[381876748,1756384257898,-796.41,0.00019726,2]
[381876749,1756384257907,-1775.23,0.00019726,2]
[381876750,1756384257916,-1077.38,0.00019726,2]
[381876751,1756384257926,-698.14,0.00019726,2]
[381876752,1756384257935,-480.0,0.00019726,2]
[381876753,1756384257945,-858.64,0.00019726,2]
[381876754,1756384257954,-480.0,0.00019726,2]
[381876755,1756384257964,-923.5,0.00019726,2]
[381876756,1756384257973,-480.0,0.00019726,2]
[381876757,1756384257983,-480.0,0.00019726,2]
[381876758,1756384257993,-480.0,0.00019726,2]
[381876759,1756384258003,-480.0,0.00019726,2]
[381876760,1756384258021,-480.0,0.00019726,2]
[381876762,1756384258033,-782.4,0.00019726,2]
[381876764,1756384258044,-621.13,0.00019726,2]
[381876766,1756384258054,-480.0,0.00019726,2]
[381876768,1756384258064,-2317.87,0.00019726,2]
[381876770,1756384258076,-3154.04,0.00019726,2]
[381876773,1756384258094,-480.0,0.00019726,2]
[381876775,1756384258104,-585.55,0.00019726,2]
[381876777,1756384258114,-2927.74,0.00019726,2]
[381876779,1756384258123,-480.0,0.00019726,2]
[381876781,1756384258133,-3903.77,0.00019726,2]
[381876783,1756384258143,-480.0,0.00019726,2]
[381876784,1756384258153,-618.24,0.00019726,2]
[381876786,1756384258163,-480.0,0.00019726,2]
[381876789,1756384258173,-480.0,0.00019726,2]
[381876791,1756384258183,-480.0,0.00019726,2]
[381876793,1756384258193,-480.0,0.00019726,2]
[381876795,1756384258207,-480.0,0.00019726,2]
[381876797,1756384258216,-480.0,0.00019726,2]
[381876799,1756384258226,-2981.08,0.00019726,2]
[381876801,1756384258236,-480.0,0.00019726,2]
[381876803,1756384258247,-605.41,0.00019726,2]
[381876805,1756384258256,-480.0,0.00019726,2]
[381876807,1756384258266,-1613.16,0.00019726,2]
[381876809,1756384258276,-494.92,0.00019726,2]
[381876811,1756384258286,-674.0,0.00019726,2]
[381876813,1756384258296,-480.0,0.00019726,2]
[381876815,1756384258305,-480.0,0.00019726,2]
[381876817,1756384258314,-480.0,0.00019726,2]
[381876819,1756384258324,-480.0,0.00019726,2]
[381876821,1756384258333,-710.3,0.00019726,2]
[381876823,1756384258343,-5843.28,0.00019726,2]
[381876825,1756384258353,-1350.34,0.00019726,2]
[381876827,1756384258362,-611.74,0.00019726,2]
[381876829,1756384258372,-1234.59,0.00019726,2]
[381876831,1756384258382,-581.93,0.00019726,2]
[381876833,1756384258392,-608.58861727,0.00019726,2]
[381876835,1756384258401,-299.1107453,0.00019726,2]
[381876837,1756384258411,-828.21,0.00019726,2]
[381876839,1756384258420,-480.0,0.00019726,2]
[381876841,1756384258429,-480.0,0.00019726,2]
[381876843,1756384258439,-1674.08,0.00019726,2]
[381876845,1756384258448,-636.77,0.00019726,2]
[381876847,1756384258457,-1941.39,0.00019726,2]
[381876849,1756384258467,-480.0,0.00019726,2]
[381876851,1756384258476,-480.0,0.00019726,2]
[381876853,1756384258485,-480.0,0.00019726,2]
[381876855,1756384258496,-3699.9,0.00019726,2]
[381876857,1756384258506,-480.0,0.00019726,2]
[381876859,1756384258515,-480.0,0.00019726,2]
[381876861,1756384258525,-480.0,0.00019726,2]
[381876863,1756384258535,-480.0,0.00019726,2]
[381876865,1756384258545,-1220.04,0.00019726,2]
[381876867,1756384258555,-898.06,0.00019726,2]
[381876869,1756384258565,-480.0,0.00019726,2]
[381876871,1756384258575,-480.0,0.00019726,2]
[381876873,1756384258585,-480.0,0.00019726,2]
[381876875,1756384258595,-480.0,0.00019726,2]
[381876877,1756384258605,-5054.96,0.00019726,2]
[381876880,1756384258615,-480.0,0.00019726,2]
[381876882,1756384258626,-480.0,0.00019726,2]
[381876884,1756384258635,-2742.83,0.00019726,2]
[381876886,1756384258645,-583.88,0.00019726,2]
[381876888,1756384258657,-480.0,0.00019726,2]
[381876890,1756384258666,-692.54,0.00019726,2]
[381876892,1756384258675,-746.84,0.00019726,2]
[381876893,1756384258685,-480.0,0.00019726,2]
[381876895,1756384258694,-480.0,0.00019726,2]
[381876897,1756384258704,-480.0,0.00019726,2]
[381876899,1756384258714,-533.95,0.00019726,2]
[381876901,1756384258724,-480.0,0.00019726,2]
[381876904,1756384258734,-480.0,0.00019726,2]
[381876905,1756384258745,-520.42,0.00019726,2]
[381876908,1756384258755,-480.0,0.00019726,2]
[381876909,1756384258765,-480.0,0.00019726,2]
[381876911,1756384258775,-2834.09,0.00019726,2]
[381876913,1756384258784,-480.0,0.00019726,2]
[381876915,1756384258795,-1293.02,0.00019726,2]
[381876917,1756384258805,-480.0,0.00019726,2]
[381876920,1756384258815,-480.0,0.00019726,2]
[381876922,1756384258825,-3182.62,0.00019726,2]
[381876924,1756384258834,-480.0,0.00019726,2]
[381876926,1756384258843,-480.0,0.00019726,2]
[381876928,1756384258853,-543.79,0.00019726,2]
[381876930,1756384258863,-480.0,0.00019726,2]
[381876932,1756384258873,-480.0,0.00019726,2]
[381876934,1756384258882,-335.6024457,0.00019726,2]
[381876936,1756384258891,-164.5008697,0.00019726,2]
[381876938,1756384258901,-419.0,0.00019735,2]
[381876940,1756384258910,-2746.3836299,0.00019754,2]
[381876942,1756384258919,-168.0,0.00019757,2]
[381876944,1756384258928,-500.0,0.00019773,2]
[381876946,1756384258937,-500.0,0.00019773,2]
[381876948,1756384258947,-500.0,0.00019773,2]
[381876950,1756384258956,-500.0,0.00019773,2]
[381876952,1756384258965,-500.0,0.00019773,2]
[381876954,1756384258975,-161.1861364,0.00019781,2]
[381876955,1756384258984,-2500.0,0.00019785,2]
[381876958,1756384258995,-151.0,0.000198,2]
[381876960,1756384259004,-500.0,0.00019802,2]
[381876962,1756384259014,-1492.0,0.00019805,2]
[381876964,1756384259023,-168.0,0.00019818,2]
[381876966,1756384259033,-419.0,0.00019854,2]
[381876968,1756384259042,-260.0,0.00019859,2]
[381876970,1756384259051,-613.060361,0.00019863,2]
[381876972,1756384259061,-260.026,0.00019867,2]
[381876974,1756384259069,-181.5,0.00019867,2]
[381876976,1756384259079,-150.156,0.00019867,2]
[381876977,1756384259088,-150.546,0.00019867,2]
[381876979,1756384259098,-150.0,0.00019867,2]
[381876981,1756384259107,-250.119,0.00019867,2]
[381876984,1756384259117,-291.801,0.00019867,2]
[381876986,1756384259126,-175.732,0.00019867,2]
[381876988,1756384259135,-974.0,0.00019867,2]
[381876990,1756384259144,-2157.0,0.00019867,2]
[381876991,1756384259155,-638.0,0.00019867,2]
[381876993,1756384259165,-415.0,0.00019867,2]
[381876995,1756384259175,-417.947,0.00019867,2]
[381876998,1756384259185,-200.0,0.0001989,3]
[381877000,1756384259194,-13125.13035948,0.0001989,2]
[381877002,1756384259205,-3779.35490432,0.000199,3]
[381877003,1756384259215,-540.926,0.000199,2]
[381877006,1756384259224,-17959.46059428,0.000199,2]
[381877007,1756384259234,-151.08251002,0.00019973,2]
[381877010,1756384259244,-1469.66,0.0001998,2]
[381877011,1756384259254,-525500.69670507,0.0001999,7]
[381877014,1756384259265,-216.18903889,0.0001999,7]
[381877015,1756384259275,-151.43310379,0.0002,2]
[381877017,1756384259285,-150.0,0.0002,2]
[381877019,1756384259295,-1028.92713439,0.0002,10]
[381877021,1756384259304,-765.68652915,0.0002,2]
[381877023,1756384259313,-3648.96821314,0.0002,20]
[381877025,1756384259322,-12081.79945286,0.0002,2]
[381877027,1756384259332,-96398.54745622,0.0002,2]
[381877030,1756384259341,-523.68949485,0.0002,2]
[381877031,1756384259351,-13819.61487043,0.0002,2]
[381877034,1756384259361,-4259.0,0.0002,5]
[381877036,1756384259371,-141124.0,0.0002,7]
[381877037,1756384259380,-93296.8,0.0002,2]
[381877039,1756384259389,-3000.0,0.0002,2]
[381877041,1756384259399,-200.0,0.0002,2]
[381877043,1756384259408,-480.0,0.0002,2]
[381877045,1756384259417,-480.0,0.0002,2]
[381877047,1756384259427,-480.0,0.0002,2]
[381877049,1756384259437,-480.0,0.0002,2]
[381877052,1756384259447,-480.0,0.0002,2]
[381877053,1756384259456,-480.0,0.0002,2]
[381877055,1756384259465,-480.0,0.0002,2]
[381877057,1756384259475,-629.0815396,0.0002,2]
[381877059,1756384259484,-480.0,0.0002,2]
[381877062,1756384259495,-592.12934867,0.0002,2]
[381877064,1756384259504,-480.0,0.0002,2]
[381877066,1756384259514,-171.57181243,0.0002,2]
[381877067,1756384259523,-480.0,0.0002,2]
[381877069,1756384259532,-480.0,0.0002,2]
[381877071,1756384259541,-480.0,0.0002,2]
[381877073,1756384259550,-480.0,0.0002,2]
[381877075,1756384259559,-480.0,0.0002,2]
[381877077,1756384259569,-480.0,0.0002,2]
[381877079,1756384259579,-480.0,0.0002,2]
[381877081,1756384259588,-480.0,0.0002,2]
[381877083,1756384259597,-480.0,0.0002,2]
[381877085,1756384259607,-480.0,0.0002,2]
[381877087,1756384259618,-480.0,0.0002,2]
[381877089,1756384259627,-480.0,0.0002,2]
[381877091,1756384259636,-480.0,0.0002,2]
[381877093,1756384259646,-480.0,0.0002,2]
[381877095,1756384259655,-296.50861773,0.0002,2]
[381877097,1756384259664,-480.0,0.0002,2]
[381877099,1756384259674,-480.0,0.0002,2]
[381877101,1756384259683,-480.0,0.0002,2]
[381877103,1756384259692,-480.0,0.0002,2]
[381877105,1756384259701,-480.0,0.0002,2]
[381877107,1756384259711,-530.76,0.0002,2]
[381877109,1756384259720,-480.0,0.0002,2]
[381877111,1756384259730,-480.0,0.0002,2]
[381877113,1756384259739,-611.67699423,0.0002,2]
[381877137,1756384259748,-1556.26,0.0002,2]
[381877139,1756384259956,-481.34,0.0002,2]
[381877141,1756384259966,-322.18521964,0.0002,2]
[381877144,1756384259976,-480.0,0.0002,2]
[381877146,1756384259983,-359.53491124,0.0002,2]
[381877148,1756384259991,-449.10898668,0.0002,2]
[381877150,1756384259999,-480.0,0.0002,2]
[381877152,1756384260007,-480.0,0.0002,2]
[381877154,1756384260016,-822.52,0.0002,2]
[381877156,1756384260025,-480.0,0.0002,2]
[381877158,1756384260032,-480.0,0.0002,2]
[381877160,1756384260040,-480.0,0.0002,2]
[381877162,1756384260049,-828.34,0.0002,2]
[381877164,1756384260059,-480.0,0.0002,2]
[381877166,1756384260069,-480.0,0.0002,2]
[381877168,1756384260079,-480.0,0.0002,2]
[381877170,1756384260088,-480.0,0.0002,2]
[381877172,1756384260096,-480.0,0.0002,2]
[381877174,1756384260106,-480.0,0.0002,2]
[381877176,1756384260115,-480.0,0.0002,2]
[381877179,1756384260125,-702.29,0.0002,2]
[381877181,1756384260134,-480.0,0.0002,2]
[381877183,1756384260145,-480.0,0.0002,2]
[381877185,1756384260154,-1107.21,0.0002,2]
[381877187,1756384260164,-480.0,0.0002,2]
[381877189,1756384260174,-480.0,0.0002,2]
[381877191,1756384260184,-480.0,0.0002,2]
[381877193,1756384260197,-642.18,0.0002,2]
[381877195,1756384260210,-480.0,0.0002,2]
[381877197,1756384260220,-480.0,0.0002,2]
[381877199,1756384260229,-480.0,0.0002,2]
[381877201,1756384260238,-480.0,0.0002,2]
[381877203,1756384260253,-480.0,0.0002,2]
[381877205,1756384260263,-480.0,0.0002,2]
[381877207,1756384260276,-480.0,0.0002,2]
[381877209,1756384260286,-480.0,0.0002,2]
[381877211,1756384260296,-495.12,0.0002,2]
[381877213,1756384260305,-480.0,0.0002,2]
[381877214,1756384260315,-480.0,0.0002,2]
[381877215,1756384260324,-480.0,0.0002,2]
[381877216,1756384260334,-531.78,0.0002,2]
[381877217,1756384260343,-480.0,0.0002,2]
[381877218,1756384260353,-504.23,0.0002,2]
[381877220,1756384260362,-480.0,0.0002,2]
[381877222,1756384260372,-480.0,0.0002,2]
[381877224,1756384260381,-480.0,0.0002,2]